bitfinex-derivatives/quotes_ETHF0:USTF0_20250105
["timestamp","ask_amount","ask_price","bid_price","bid_amount"]
[1736059259090,0.81438737,3637.3,3637.2,0.6965]
[1736059260685,6.64298648,3637.8,3637.2,12.62194841]
[1736059260879,6.64298648,3637.8,3637.5,0.99805878]
[1736059260880,6.91794648,3637.8,3637.5,0.99805878]
[1736059261188,6.91794648,3637.8,3637.6,0.4083]
[1736059261885,6.64298648,3637.8,3637.6,0.4083]
[1736059262187,6.64298648,3637.8,3637.6,0.8378]
[1736059262188,6.91794648,3637.8,3637.6,0.8378]
[1736059262390,0.99805878,3637.7,3637.6,0.8378]
[1736059263686,0.99805878,3637.7,3637.6,4.94557895]
[1736059265185,0.99805878,3637.7,3637.6,11.42660579]
[1736059270790,3.39490542,3637.8,3637.6,11.42660579]
[1736059271019,3.2078,3637.8,3637.7,0.4356]
[1736059271182,3.2078,3637.8,3637.7,1.43365878]
[1736059271390,3.2078,3637.8,3637.7,1.70861878]
[1736059272092,2.05305878,3638.0,3637.7,1.70861878]
[1736059272093,0.99805878,3638.0,3637.7,1.70861878]
[1736059272595,1.27299878,3638.0,3637.7,1.43365878]
[1736059272990,0.99805878,3638.0,3637.7,1.43365878]
[1736059273303,0.99805878,3638.0,3637.9,4.31576788]
[1736059273482,1.4792,3638.1,3637.9,4.31576788]
[1736059273683,6.90528106,3638.4,3637.9,5.31382666]
[1736059273991,6.45588106,3638.4,3638.3,0.99805878]
[1736059274693,3.2078,3638.4,3638.3,1.27297878]
[1736059275782,3.2078,3638.4,3638.3,0.99805878]
[1736059275984,3.2078,3638.4,3638.3,1.27297878]
[1736059276189,3.2078,3638.4,3638.3,11.85127868]
[1736059277989,3.2078,3638.4,3638.3,5.58054617]
[1736059279285,3.24808106,3639.3,3638.3,5.58054617]
[1736059279286,2.16342878,3639.0,3638.3,5.58054617]
[1736059279489,6.42622878,3639.0,3638.7,0.99805878]
[1736059279693,1.88855878,3639.0,3638.8,0.8809]
[1736059288595,1.77756,3639.1,3638.8,0.8809]
[1736059288596,3.2078,3639.4,3639.3,0.27484]
[1736059288796,4.491,3639.9,3639.3,0.99805878]
[1736059289027,4.491,3639.9,3639.6,1.27286878]
[1736059289597,5.48905878,3639.9,3639.6,0.99805878]
[1736059289893,5.48905878,3639.9,3639.5,0.27482]
[1736059289894,5.76385878,3639.9,3639.5,0.27483]
[1736059290404,5.48905878,3639.9,3639.5,0.27483]
[1736059290702,5.76385878,3639.9,3639.5,0.27483]
[1736059292100,5.76385878,3639.9,3639.4,2.28795878]
[1736059292101,0.27481,3639.8,3639.4,2.56278878]
[1736059294808,5.48905878,3639.9,3639.4,2.56278878]
[1736059295001,5.76385878,3639.9,3639.4,2.56278878]
[1736059295901,5.76385878,3639.9,3639.4,2.28795878]
[1736059296102,5.76385878,3639.9,3639.5,0.27482]
[1736059296496,5.76385878,3639.9,3639.6,0.99805878]
[1736059298398,5.48905878,3639.9,3639.6,0.99805878]
[1736059299400,5.76385878,3639.9,3639.6,0.99805878]
[1736059301412,5.48905878,3639.9,3639.6,0.99805878]
[1736059302504,4.491,3639.9,3639.6,1.27286878]
[1736059302704,4.491,3639.9,3639.7,0.27481]
[1736059302901,4.491,3639.9,3639.6,1.27287878]
[1736059303601,4.491,3639.9,3639.6,0.99805878]
[1736059304002,4.491,3639.9,3639.6,1.27286878]
[1736059305923,1.2832,3639.9,3639.6,1.27286878]
[1736059306908,1.2832,3639.9,3639.6,0.99805878]
[1736059307109,1.558,3639.9,3639.5,0.27482]
[1736059307510,1.558,3639.9,3639.4,5.49575878]
[1736059307713,1.558,3639.9,3639.5,0.27483]
[1736059311728,1.558,3639.9,3639.6,0.99805878]
[1736059312327,0.4437,3639.9,3639.8,1.27285878]
[1736059312530,3.2078,3640.2,3639.8,0.99805878]
[1736059312730,3.2078,3640.2,3640.0,1.27284878]
[1736059312924,3.2078,3640.2,3640.0,0.99805878]
[1736059313229,3.2078,3640.2,3640.0,1.42255878]
[1736059313423,3.2078,3640.2,3640.1,0.27478]
[1736059314335,3.2078,3640.2,3640.0,1.69734878]
[1736059315035,3.2078,3640.2,3640.1,0.27478]
[1736059315326,3.2078,3640.2,3640.0,1.69734878]
[1736059316130,3.2078,3640.2,3640.1,0.27478]
[1736059316329,3.2078,3640.2,3640.0,1.42255878]
[1736059316556,3.2078,3640.2,3640.0,1.69734878]
[1736059319332,0.4126,3640.1,3640.0,1.69734878]
[1736059320635,0.4126,3640.1,3640.0,1.42255878]
[1736059324641,0.4126,3640.1,3640.0,1.69734878]
[1736059325538,0.4126,3640.1,3640.0,1.42255878]
[1736059325939,0.4126,3640.1,3640.0,1.69734878]
[1736059326134,0.4126,3640.1,3640.0,1.42255878]
[1736059331844,0.4126,3640.1,3640.0,1.69734878]
[1736059332544,0.4126,3640.1,3640.0,1.42255878]
[1736059333439,3.24808106,3640.3,3640.0,6.00491617]
[1736059333644,3.24808106,3640.3,3640.0,6.43031617]
[1736059334145,3.24808106,3640.3,3640.2,0.99805878]
[1736059334843,3.95934106,3640.4,3640.2,5.30562617]
[1736059335044,3.68458106,3640.4,3640.2,5.30562617]
[1736059336243,3.95934106,3640.4,3640.2,5.30562617]
[1736059336636,3.95934106,3640.4,3640.3,4.30756739]
[1736059337540,3.68458106,3640.4,3640.3,4.30756739]
[1736059337839,3.95934106,3640.4,3640.3,4.30756739]
[1736059338039,3.68458106,3640.4,3640.3,4.30756739]
[1736059338546,3.95934106,3640.4,3640.3,4.30756739]
[1736059339247,0.71126,3640.4,3640.3,4.30756739]
[1736059344753,0.4365,3640.4,3640.3,4.30756739]
[1736059347249,3.24808106,3640.5,3640.3,4.58233739]
[1736059347453,3.24808106,3640.5,3640.4,1.42665878]
[1736059347758,7.16182106,3640.7,3640.4,1.42665878]
[1736059349356,3.91374,3640.7,3640.5,8.40969003]
[1736059349857,3.2078,3640.7,3640.5,8.84279003]
[1736059350651,3.2078,3640.7,3640.5,4.74403915]
[1736059352960,3.2078,3640.7,3640.6,0.99805878]
[1736059354256,0.4196,3640.8,3640.6,0.99805878]
[1736059354662,0.69433,3640.8,3640.6,0.99805878]
[1736059355353,0.99805878,3640.7,3640.5,4.31093915]
[1736059355560,0.27474,3640.6,3640.5,4.31093915]
[1736059356451,0.27476,3640.4,3640.2,4.31093915]
[1736059356651,1.13647,3640.3,3640.2,4.31093915]
[1736059357059,0.8617,3640.3,3640.2,4.31093915]
[1736059358159,1.13647,3640.3,3640.2,4.31093915]
[1736059359263,1.13647,3640.3,3640.2,4.09656648]
[1736059363180,0.8617,3640.3,3640.2,4.09656648]
[1736059363853,0.8617,3640.3,3640.2,4.53116648]
[1736059364762,3.52498476,3640.6,3640.2,4.53116648]
[1736059365061,0.4338,3640.5,3640.4,0.99805878]
[1736059366665,0.4338,3640.5,3640.4,5.30751857]
[1736059371373,0.0021537,3640.6,3640.4,5.30751857]
[1736059371570,0.4357537,3640.6,3640.4,5.36927157]
[1736059373267,0.4357537,3640.6,3640.5,4.31027555]
[1736059375972,0.4357537,3640.6,3640.5,8.40767411]
[1736059377371,0.4357537,3640.6,3640.5,4.09739856]
[1736059380180,0.4357537,3640.6,3640.5,4.53559856]
[1736059380485,0.4357537,3640.6,3640.5,11.0166254]
[1736059381481,2.16426188,3640.6,3640.5,11.0166254]
[1736059381682,2.16426188,3640.6,3640.5,11.7324754]
[1736059383287,0.0021537,3640.6,3640.5,13.44359097]
[1736059396086,0.0021537,3640.6,3640.5,25.26311686]
[1736059398905,0.0021537,3640.6,3640.5,22.05531686]
[1736059399139,0.0021537,3640.6,3640.5,25.26311686]
[1736059399993,0.0021537,3640.6,3640.5,25.10712564]
[1736059400709,0.0021537,3640.6,3640.5,16.91498323]
[1736059402703,0.0021537,3640.6,3640.5,14.76027458]
[1736059404008,0.0021537,3640.6,3640.5,15.03502458]
[1736059405807,0.0021537,3640.6,3640.5,8.57800734]
[1736059407623,0.0021537,3640.6,3640.5,5.37020734]
[1736059408009,0.0021537,3640.6,3640.5,5.09545734]
[1736059408209,0.0021537,3640.6,3640.5,5.37020734]
[1736059411910,0.0021537,3640.6,3640.5,13.98193323]
[1736059416409,0.0021537,3640.6,3640.5,5.37020734]
[1736059416616,0.0021537,3640.6,3640.5,13.55834887]
[1736059419315,0.0021537,3640.6,3640.5,13.97534887]
[1736059421307,0.0021537,3640.6,3640.5,24.78138584]
[1736059425425,0.0021537,3640.6,3640.5,27.98918584]
[1736059426219,0.0021537,3640.6,3640.5,17.18314887]
[1736059429425,0.4459,3640.9,3640.5,16.90839887]
[1736059429627,2.60800818,3640.9,3640.8,1.27278878]
[1736059431127,0.4459,3640.9,3640.8,22.18052554]
[1736059431826,0.44818328,3640.9,3640.8,22.18052554]
[1736059434245,0.44818328,3640.9,3640.8,13.99238401]
[1736059439332,2.61029146,3640.9,3640.8,13.99238401]
[1736059443732,2.61029146,3640.9,3640.8,13.71765401]
[1736059445027,2.61029146,3640.9,3640.8,5.09545734]
[1736059446934,2.61029146,3640.9,3640.8,13.71765401]
[1736059448635,2.61029146,3640.9,3640.8,13.99238401]
[1736059451241,2.61029146,3640.9,3640.8,13.71765401]
[1736059453035,2.61029146,3640.9,3640.8,21.91126067]
[1736059453233,2.61029146,3640.9,3640.8,22.18599067]
[1736059454344,2.61029146,3640.9,3640.8,21.91126067]
[1736059454637,2.61029146,3640.9,3640.8,13.71765401]
[1736059455643,2.88501146,3640.9,3640.8,13.71765401]
[1736059457339,4.38322535,3640.9,3640.8,11.55635341]
[1736059459346,3.97098434,3640.9,3640.8,5.09545734]
[1736059460739,4.38322535,3640.9,3640.8,5.09545734]
[1736059462133,4.38322535,3640.9,3640.8,11.5557317]
[1736059464648,3.97098434,3640.9,3640.8,11.5557317]
[1736059467054,3.69626434,3640.9,3640.8,11.5557317]
[1736059469563,0.44818328,3640.9,3640.8,11.5557317]
[1736059470960,0.72290328,3640.9,3640.8,11.5557317]
[1736059471359,3.97098434,3640.9,3640.8,11.5557317]
[1736059474260,3.69626434,3640.9,3640.8,11.5557317]
[1736059474868,3.69626434,3640.9,3640.8,5.09545734]
[1736059475469,3.97098434,3640.9,3640.8,5.09545734]
[1736059476567,3.69626434,3640.9,3640.8,5.09545734]
[1736059479064,3.69626434,3640.9,3640.8,11.55782648]
[1736059479771,3.97098434,3640.9,3640.8,11.55782648]
[1736059480364,4.38322252,3640.9,3640.8,11.55782648]
[1736059481274,4.10850252,3640.9,3640.8,11.55782648]
[1736059487477,4.38322252,3640.9,3640.8,11.55782648]
[1736059488981,4.38322252,3640.9,3640.8,10.5597677]
[1736059491375,4.10850252,3640.9,3640.8,10.5597677]
[1736059498079,0.86042146,3640.9,3640.8,10.5597677]
[1736059499385,0.44818328,3640.9,3640.8,10.5597677]
[1736059500386,1.50218328,3640.9,3640.8,10.5597677]
[1736059500880,1.91442146,3640.9,3640.8,4.09739856]
[1736059504990,2.18914146,3640.9,3640.8,4.09739856]
[1736059505990,2.18685818,3640.9,3640.8,4.09739856]
[1736059508494,2.18914146,3640.9,3640.8,4.09739856]
[1736059509083,2.18914146,3640.9,3640.8,10.56541569]
[1736059518389,1.91442146,3640.9,3640.8,10.56541569]
[1736059519992,1.91442146,3640.9,3640.8,4.09739856]
[1736059520387,1.91442146,3640.9,3640.8,4.52099856]
[1736059521807,5.16018826,3640.9,3640.8,13.14319523]
[1736059522887,4.74795008,3640.9,3640.8,13.14319523]
[1736059523483,4.74795008,3640.9,3640.8,14.14125401]
[1736059524195,4.30205008,3640.9,3640.8,14.41598401]
[1736059525324,3.21959955,3640.9,3640.8,22.60660326]
[1736059525490,2.16559955,3640.9,3640.8,22.60660326]
[1736059527091,2.16559955,3640.9,3640.8,13.98440659]
[1736059530293,2.16559955,3640.9,3640.8,14.40840241]
[1736059532596,2.16559955,3640.9,3640.8,13.13561363]
[1736059532891,2.44031955,3640.9,3640.8,13.13561363]
[1736059533396,2.44031955,3640.9,3640.8,4.52099856]
[1736059533591,5.64811955,3640.9,3640.8,2.21139856]
[1736059534802,13.15872274,3640.9,3640.5,15.08711425]
[1736059535008,0.27474,3640.6,3640.5,4.30936841]
[1736059535201,1.32874,3640.6,3640.5,4.30936841]
[1736059536095,1.46628526,3640.6,3640.4,4.30936841]
[1736059536296,0.27475,3640.5,3640.4,4.30936841]
[1736059536504,0.27475,3640.5,3640.4,5.30742719]
[1736059538803,0.27475,3640.5,3640.4,4.30936841]
[1736059539102,3.48255,3640.5,3640.4,4.30936841]
[1736059540499,0.27477,3640.2,3640.1,4.30936841]
[1736059542096,2.43534363,3640.2,3640.0,5.30742719]
[1736059543603,0.27477,3640.2,3640.0,5.30742719]
[1736059545999,0.27477,3640.2,3640.0,0.99805878]
[1736059546395,0.27477,3640.2,3640.1,0.4152]
[1736059547899,0.27478,3640.1,3640.0,5.30742719]
[1736059548105,0.27478,3640.1,3640.0,4.30936841]
[1736059550106,0.27478,3640.1,3639.9,6.14562719]
[1736059551406,0.27478,3640.1,3639.9,1.83625878]
[1736059552911,0.27478,3640.1,3639.9,6.14562719]
[1736059559708,0.8517,3640.3,3639.9,6.14562719]
[1736059559908,1.054,3640.3,3640.1,0.99805878]
[1736059560311,1.32877,3640.3,3640.2,0.4417]
[1736059560816,3.2078,3640.4,3640.2,0.4417]
[1736059561018,3.2078,3640.4,3640.3,1.44685878]
[1736059562513,1.32876,3640.5,3640.3,1.44685878]
[1736059562514,0.27476,3640.5,3640.3,1.44685878]
[1736059564611,1.054,3640.6,3640.3,1.44685878]
[1736059564816,0.27476,3640.4,3640.3,1.44685878]
[1736059565620,0.27476,3640.5,3640.3,1.44685878]
[1736059569318,1.054,3640.6,3640.3,1.44685878]
[1736059569319,0.27476,3640.4,3640.3,1.44685878]
[1736059571214,1.054,3640.6,3640.3,1.44685878]
[1736059571414,0.27476,3640.4,3640.3,1.44685878]
[1736059571615,0.27477,3640.3,3640.2,4.30936841]
[1736059571818,0.27477,3640.3,3640.1,0.99805878]
[1736059571819,0.865,3640.3,3640.1,0.99805878]
[1736059572026,0.68017,3640.2,3640.1,7.4621114]
[1736059573316,0.68017,3640.2,3640.1,4.04326459]
[1736059573525,1.67822878,3640.2,3640.1,4.04326459]
[1736059574831,0.27479,3640.0,3639.9,5.30276192]
[1736059576326,1.27284878,3640.0,3639.9,4.30470314]
[1736059576520,4.48064878,3640.0,3639.9,4.30470314]
[1736059577527,4.48064878,3640.0,3639.9,3.62940314]
[1736059577721,0.27481,3639.7,3639.6,2.27880314]
[1736059577921,2.32686878,3639.7,3639.6,2.27880314]
[1736059579127,2.32686878,3639.7,3639.6,1.60350314]
[1736059579626,0.27486,3639.1,3639.0,6.91245262]
[1736059581126,0.27486,3639.1,3639.0,0.4484]
[1736059584023,1.33086,3639.1,3639.0,0.4484]
[1736059594633,1.056,3639.1,3638.4,0.2749]
[1736059594936,0.27487,3638.9,3638.8,0.8805]
[1736059606332,4.698,3639.1,3638.8,0.8805]
[1736059606333,4.53866,3639.1,3638.8,0.8805]
[1736059606537,1.056,3639.0,3638.8,0.8805]
[1736059607540,1.33087,3639.0,3638.8,0.8805]
[1736059613744,0.27487,3638.9,3638.8,0.8805]
[1736059614050,1.056,3639.0,3638.8,0.8805]
[1736059614051,1.33087,3639.0,3638.8,0.8805]
[1736059618761,0.27487,3639.0,3638.8,0.8805]
[1736059619753,1.055,3639.1,3638.9,0.99805878]
[1736059620159,1.055,3639.1,3639.0,0.4483]
[1736059620764,2.1596404,3639.2,3639.0,0.4483]
[1736059620960,2.1596404,3639.2,3639.1,0.99805878]
[1736059622065,2.1596404,3639.3,3639.1,11.44349888]
[1736059622462,2.4344904,3639.3,3639.2,0.4419]
[1736059623861,0.27485,3639.3,3639.2,0.4419]
[1736059625960,2.46145878,3639.6,3639.2,0.4419]
[1736059626171,0.27483,3639.4,3639.3,0.4234]
[1736059626366,0.27482,3639.6,3639.3,1.42145878]
[1736059626671,1.055,3639.5,3639.4,0.99805878]
[1736059627766,3.48261,3639.7,3639.4,0.99805878]
[1736059627973,3.2078,3639.7,3639.5,0.4114]
[1736059628177,0.27482,3639.6,3639.5,0.4114]
[1736059629871,3.48262,3639.7,3639.5,0.4114]
[1736059630076,0.27482,3639.6,3639.5,0.4114]
[1736059630466,3.2078,3639.7,3639.5,0.4114]
[1736059630671,3.2078,3639.7,3639.6,0.99805878]
[1736059633765,3.2078,3639.7,3639.6,4.97446623]
[1736059634972,3.2078,3639.7,3639.6,0.99805878]
[1736059637674,3.2078,3639.7,3639.6,4.97082301]
[1736059638772,0.2748,3639.8,3639.6,4.97082301]
[1736059639274,5.94142879,3640.0,3639.6,0.99805878]
[1736059639463,0.2748,3639.9,3639.6,0.99805878]
[1736059640272,0.2748,3639.9,3639.7,0.4168]
[1736059640566,0.2748,3639.9,3639.8,0.4256]
[1736059646677,0.2748,3639.9,3639.8,1.42365878]
[1736059651484,3.00841879,3640.0,3639.8,1.42365878]
[1736059652481,2.73362879,3640.0,3639.8,1.42365878]
[1736059652683,1.32979,3640.0,3639.8,1.42365878]
[1736059655993,0.27479,3640.0,3639.8,1.42365878]
[1736059656191,1.4853,3640.2,3639.8,1.42365878]
[1736059656394,0.2748,3639.9,3639.8,0.4256]
[1736059657795,0.68879,3640.0,3639.8,0.4256]
[1736059665399,2.84944928,3640.0,3639.8,0.4256]
[1736059666705,3.92977892,3640.0,3639.9,3.9752727]
[1736059668106,3.51577892,3640.0,3639.9,3.9752727]
[1736059670009,3.24098892,3640.0,3639.9,3.9752727]
[1736059671822,4.5138277,3640.1,3639.9,10.43034745]
[1736059673021,4.5138277,3640.1,3639.9,6.45507475]
[1736059674120,4.2390477,3640.1,3639.9,6.45507475]
[1736059674363,3.51577892,3640.0,3639.9,6.45507475]
[1736059675518,0.68713785,3640.0,3639.8,6.45507475]
[1736059677115,0.27479,3640.0,3639.9,3.98028274]
[1736059677727,0.27479,3640.0,3639.9,4.42348274]
[1736059678025,5.59415734,3640.1,3639.9,4.42348274]
[1736059678635,5.59415734,3640.1,3640.0,0.4318]
[1736059679628,5.31937734,3640.1,3639.9,10.43535749]
[1736059679821,0.27479,3640.0,3639.9,10.43535749]
[1736059680023,0.27479,3640.0,3639.9,6.45507475]
[1736059681625,5.00844539,3640.0,3639.8,6.45507475]
[1736059681825,0.99805878,3639.9,3639.8,6.45507475]
[1736059682721,1.41039561,3639.9,3639.8,10.43713216]
[1736059683528,1.68519561,3639.9,3639.8,10.43713216]
[1736059684425,4.89299561,3639.9,3639.8,10.43713216]
[1736059684827,5.16119561,3639.9,3639.8,10.43713216]
[1736059685020,6.21519561,3639.9,3639.8,10.43713216]
[1736059685628,0.27482,3639.6,3639.5,0.4088]
[1736059685827,1.27287878,3639.6,3639.5,0.4088]
[1736059686927,4.92956397,3639.6,3639.5,0.4088]
[1736059688631,1.68521561,3639.6,3639.5,0.4088]
[1736059689925,1.27287878,3639.6,3639.5,0.4088]
[1736059691028,4.9274607,3639.6,3639.5,0.4088]
[1736059693834,4.51512387,3639.6,3639.5,0.4088]
[1736059695445,1.27287878,3639.6,3639.5,0.4088]
[1736059698837,2.32687878,3639.6,3639.5,0.4088]
[1736059700935,5.56912387,3639.6,3639.5,0.4088]
[1736059702736,2.32687878,3639.6,3639.5,0.4088]
[1736059708536,5.56912387,3639.6,3639.5,0.4088]
[1736059712637,2.73929708,3639.6,3639.5,0.4088]
[1736059714247,0.27483,3639.4,3639.3,0.4406]
[1736059714444,1.27288878,3639.4,3639.3,0.4406]
[1736059715748,3.43307394,3639.4,3639.3,0.4406]
[1736059717447,1.27288878,3639.4,3639.3,0.4406]
[1736059720351,4.51316652,3639.4,3639.3,0.4406]
[1736059721442,4.92559781,3639.4,3639.3,0.4406]
[1736059723053,1.68532007,3639.4,3639.3,0.4406]
[1736059724252,4.89312007,3639.4,3639.3,0.4406]
[1736059728761,8.13632798,3639.4,3639.3,0.4406]
[1736059729955,4.89312007,3639.4,3639.3,0.4406]
[1736059731659,4.89312007,3639.4,3639.3,4.74151908]
[1736059734968,1.68532007,3639.4,3639.3,4.74151908]
[1736059735264,4.89312007,3639.4,3639.3,4.74151908]
[1736059740456,9.21891789,3639.4,3639.3,0.4406]
[1736059741266,7.94602911,3639.4,3639.3,0.4406]
[1736059741465,7.94602911,3639.4,3639.3,0.71544]
[1736059742571,6.4533096,3639.4,3639.3,11.15100898]
[1736059742769,3.2455096,3639.4,3639.3,11.15100898]
[1736059742969,1.8943096,3639.4,3639.3,14.35880898]
[1736059743309,4.32579782,3639.6,3639.5,0.27483]
[1736059743461,4.32579782,3639.6,3639.5,1.27288878]
[1736059744060,2.16320118,3639.7,3639.5,0.99805878]
[1736059744262,2.16320118,3639.7,3639.6,0.70252]
[1736059745428,3.49398118,3640.1,3639.6,21.24481784]
[1736059745702,3.49398118,3640.1,3639.8,0.99805878]
[1736059746081,0.27479,3640.0,3639.9,0.4445]
[1736059746381,3.21920118,3640.1,3639.9,0.8772]
[1736059746574,3.21920118,3640.1,3640.0,4.30086647]
[1736059746777,3.49398118,3640.1,3640.0,4.30086647]
[1736059746972,2.16320118,3640.1,3640.0,4.30086647]
[1736059747870,0.99805878,3640.2,3640.0,4.30086647]
[1736059747871,3.16125996,3640.2,3640.0,4.30086647]
[1736059748172,3.43603996,3640.2,3640.1,0.4141]
[1736059749367,0.99805878,3640.2,3639.9,5.17806647]
[1736059749671,0.99805878,3640.0,3639.9,5.17806647]
[1736059750469,0.99805878,3640.0,3639.9,0.8772]
[1736059752672,1.27284878,3640.0,3639.9,0.4445]
[1736059752900,0.99805878,3640.0,3639.8,4.30086647]
[1736059753177,0.2748,3639.9,3639.8,4.30086647]
[1736059754376,0.2748,3639.8,3639.5,5.15286647]
[1736059754565,0.2748,3639.9,3639.6,0.99805878]
[1736059755374,0.2748,3639.9,3639.7,4.30086647]
[1736059755574,0.99805878,3640.0,3639.7,4.30086647]
[1736059755575,0.27479,3640.0,3639.7,4.30086647]
[1736059756180,0.4263,3640.2,3639.8,1.27285878]
[1736059756181,0.70108,3640.2,3639.8,1.27285878]
[1736059756377,0.70108,3640.2,3640.0,0.99805878]
[1736059756378,0.4263,3640.2,3640.0,0.99805878]
[1736059756578,0.4263,3640.2,3640.1,0.4122]
[1736059756992,3.4834803,3640.3,3640.1,0.4122]
[1736059756993,3.4834803,3640.3,3640.1,0.8568]
[1736059757383,2.16320118,3640.4,3640.3,0.27477]
[1736059757775,2.16320118,3640.4,3640.3,0.71217]
[1736059758882,3.2078,3640.5,3640.3,0.71217]
[1736059759279,0.4061,3640.7,3640.4,1.27281878]
[1736059759677,0.4061,3640.7,3640.4,0.99805878]
[1736059759889,2.16320118,3640.8,3640.5,0.27475]
[1736059760284,0.27472,3640.9,3640.5,0.27475]
[1736059760496,0.99805878,3640.8,3640.4,1.27280878]
[1736059760985,0.99805878,3640.8,3640.5,0.27475]
[1736059761191,0.27472,3640.9,3640.5,0.27475]
[1736059761385,1.27277878,3640.9,3640.5,0.27475]
[1736059762383,1.27277878,3640.9,3640.4,1.27281878]
[1736059763881,0.99805878,3640.9,3640.4,0.99805878]
[1736059764087,0.99805878,3640.9,3640.5,0.27475]
[1736059764287,0.27472,3641.0,3640.6,0.99805878]
[1736059764488,1.69246878,3641.1,3640.7,0.4475]
[1736059764714,1.69246878,3641.1,3640.7,0.8716]
[1736059765281,0.27474,3640.7,3640.6,3.2078]
[1736059765479,1.27279878,3640.7,3640.6,3.2078]
[1736059766187,1.68719878,3640.7,3640.6,3.2078]
[1736059767590,0.27477,3640.3,3640.0,4.30086647]
[1736059767918,1.69053878,3640.2,3640.0,4.30086647]
[1736059768083,0.8638,3640.1,3640.0,4.30086647]
[1736059768485,0.8638,3640.1,3639.9,3.6298]
[1736059770384,0.8638,3640.1,3640.0,0.99805878]
[1736059770715,0.415,3640.1,3640.0,0.99805878]
[1736059770894,0.4395,3640.7,3640.0,0.99805878]
[1736059771093,2.3282,3640.7,3640.5,0.99805878]
[1736059771298,2.3282,3640.7,3640.5,1.27280878]
[1736059771299,1.4791,3640.7,3640.5,1.27280878]
[1736059771489,1.4791,3640.7,3640.6,0.4502]
[1736059773995,1.4791,3640.7,3640.3,4.93081878]
[1736059773996,0.69684,3640.7,3640.3,4.93081878]
[1736059776793,0.99805878,3640.6,3640.3,3.658]
[1736059777200,0.69684,3640.7,3640.3,3.93277]
[1736059777796,0.69684,3640.7,3640.3,0.72497]
[1736059780791,0.69684,3640.7,3640.3,0.4502]
[1736059782501,0.99805878,3640.6,3640.3,0.4502]
[1736059782794,0.27477,3640.3,3640.0,5.29892525]
[1736059783005,1.10228,3640.2,3640.0,4.30086647]
[1736059783301,1.10228,3640.2,3640.1,4.30086647]
[1736059783904,2.10033878,3640.2,3640.1,4.30086647]
[1736059785099,2.10033878,3640.2,3639.9,0.4483]
[1736059785700,1.10228,3640.2,3640.0,0.99805878]
[1736059786398,0.42,3640.2,3640.0,0.99805878]
[1736059786597,0.42,3640.2,3640.0,1.27284878]
[1736059786903,0.42,3640.2,3640.0,0.99805878]
[1736059787098,1.057,3640.3,3640.0,1.27284878]
[1736059787605,1.33176,3640.4,3640.0,1.27284878]
[1736059787803,1.33176,3640.4,3640.1,0.4467]
[1736059788004,1.33176,3640.4,3640.2,1.42705878]
[1736059788703,0.27476,3640.4,3640.2,1.42705878]
[1736059789161,0.4437,3640.5,3640.2,1.70182878]
[1736059789322,0.4437,3640.5,3640.2,0.429]
[1736059789500,0.71845,3640.5,3640.2,0.429]
[1736059789704,1.27281878,3640.4,3640.1,4.74756647]
[1736059789925,1.43335878,3640.4,3640.1,5.02234647]
[1736059790402,1.43335878,3640.4,3640.2,0.27477]
[1736059791104,1.43335878,3640.4,3640.2,4.57563647]
[1736059791707,1.43335878,3640.4,3640.2,4.30086647]
[1736059792521,1.43335878,3640.4,3640.2,4.57563647]
[1736059792695,1.43335878,3640.4,3640.2,4.30086647]
[1736059793808,2.16320118,3640.6,3640.3,4.30086647]
[1736059794004,2.16320118,3640.6,3640.4,0.27476]
[1736059794302,2.16320118,3640.6,3640.4,0.70046]
[1736059794707,2.16320118,3640.6,3640.4,0.4257]
[1736059795412,0.27474,3640.7,3640.5,4.30086647]
[1736059795906,5.05425996,3640.8,3640.5,4.30086647]
[1736059796106,5.32898996,3640.8,3640.5,4.30086647]
[1736059796410,4.33093118,3640.8,3640.5,4.30086647]
[1736059797903,4.05620118,3640.8,3640.4,5.00131647]
[1736059798111,4.05620118,3640.8,3640.4,4.72656647]
[1736059798304,4.05620118,3640.8,3640.5,0.27475]
[1736059798510,3.21720118,3640.8,3640.6,0.4229]
[1736059798743,3.21720118,3640.8,3640.6,0.8556]
[1736059799415,1.054,3640.8,3640.6,5.15646647]
[1736059800711,2.43792118,3640.9,3640.6,5.15646647]
[1736059800914,2.43792118,3640.9,3640.7,4.30086647]
[1736059801154,2.16320118,3640.9,3640.7,4.30086647]
[1736059801316,2.16320118,3640.9,3640.7,4.57559647]
[1736059801520,2.16320118,3640.9,3640.7,4.30086647]
[1736059802319,2.43792118,3641.0,3640.8,4.30086647]
[1736059802820,0.27472,3640.9,3640.8,4.30086647]
[1736059803424,2.43792118,3640.9,3640.7,4.30086647]
[1736059804232,0.27473,3640.8,3640.7,4.30086647]
[1736059804432,2.16320118,3640.9,3640.7,4.30086647]
[1736059804629,2.43792118,3640.9,3640.7,4.30086647]
[1736059805071,2.16320118,3640.8,3640.6,4.30086647]
[1736059805516,2.16320118,3640.8,3640.6,4.57560647]
[1736059806219,2.16320118,3640.8,3640.6,4.30086647]
[1736059806418,2.16320118,3640.8,3640.7,4.30086647]
[1736059808028,2.16551037,3640.9,3640.7,4.30086647]
[1736059810131,2.16551037,3640.9,3640.7,4.57559647]
[1736059812031,2.16551037,3640.9,3640.7,4.30086647]
[1736059813342,2.16551037,3640.9,3640.7,4.57560647]
[1736059813636,2.16551037,3640.9,3640.8,0.70203]
[1736059815535,0.00230919,3640.9,3640.8,11.20835296]
[1736059816238,0.00230919,3640.9,3640.8,12.20436769]
[1736059818736,0.00230919,3640.9,3640.8,13.86045308]
[1736059820637,0.00230919,3640.9,3640.8,14.27045308]
[1736059825146,0.00230919,3640.9,3640.8,22.85875453]
[1736059827645,0.00230919,3640.9,3640.8,14.27045308]
[1736059829250,0.00230919,3640.9,3640.8,6.16306798]
[1736059830446,0.00230919,3640.9,3640.8,14.74757415]
[1736059831797,0.00230919,3640.9,3640.8,22.84085842]
[1736059831945,0.00230919,3640.9,3640.8,23.0585761]
[1736059832753,0.00230919,3640.9,3640.8,24.05459083]
[1736059832946,2.16320118,3642.1,3641.0,0.68678]
[1736059833148,3.2078,3642.2,3642.0,0.99601473]
[1736059833149,2.64104176,3642.2,3642.0,0.99601473]
[1736059833361,2.64104176,3642.2,3642.1,0.69153]
[1736059834756,1.3156,3642.2,3642.1,0.69153]
[1736059835243,0.4364,3642.2,3642.1,0.69153]
[1736059836446,0.8578,3642.5,3642.4,0.27461]
[1736059836649,0.8578,3642.5,3642.4,3.48241]
[1736059850264,0.8578,3642.5,3642.4,5.68821282]
[1736059853564,0.8578,3642.5,3642.4,3.48241]
[1736059854862,0.27461,3642.4,3642.0,4.56279534]